bitfinex/quotes_ETHUSD_20240630
["timestamp","ask_amount","ask_price","bid_price","bid_amount"]
[1719721060182,3.64519328,3378.0,3377.9,0.148]
[1719721060393,4.09769775,3378.0,3377.9,0.148]
[1719721063388,3.64519328,3378.0,3377.9,0.148]
[1719721063726,4.09757644,3378.0,3377.9,0.148]
[1719721065187,5.72745904,3378.0,3377.9,0.148]
[1719721066356,4.09757644,3378.0,3377.9,0.148]
[1719721066699,3.64519328,3378.0,3377.9,0.148]
[1719721066898,4.09770023,3378.0,3377.9,0.148]
[1719721067191,5.72773887,3378.0,3377.9,0.148]
[1719721068495,4.09770081,3378.0,3377.9,0.148]
[1719721069885,4.09769951,3378.0,3377.9,0.148]
[1719721070724,3.64519328,3378.0,3377.9,0.148]
[1719721070901,5.72773705,3378.0,3377.9,0.148]
[1719721072269,4.0977,3378.0,3377.9,0.148]
[1719721073288,4.09769811,3378.0,3377.9,0.148]
[1719721074930,5.7277328,3378.0,3377.9,0.148]
[1719721076471,5.72773466,3378.0,3377.9,0.148]
[1719721076799,3.64519328,3378.0,3377.9,0.148]
[1719721077000,5.72785515,3378.0,3377.9,0.148]
[1719721079504,3.64519328,3378.0,3377.9,0.148]
[1719721079805,5.72776567,3378.0,3377.9,0.148]
[1719721080175,14.60886567,3378.0,3377.9,0.148]
[1719721082108,14.60886886,3378.0,3377.9,0.148]
[1719721082409,14.60886886,3378.0,3376.9,2.3186]
[1719721082579,0.863,3377.0,3376.9,2.3186]
[1719721083078,0.93881492,3377.0,3376.9,2.3186]
[1719721084614,0.93881492,3377.0,3376.6,2.3739]
[1719721084911,0.863,3376.8,3376.6,2.3739]
[1719721085286,0.07576411,3376.7,3376.6,2.3739]
[1719721085484,0.863,3376.8,3376.6,2.3739]
[1719721085692,0.07576741,3376.7,3376.6,2.3739]
[1719721085887,0.863,3376.8,3376.6,2.3739]
[1719721086081,0.07576082,3376.7,3376.6,2.3739]
[1719721086276,0.863,3376.8,3376.6,2.3739]
[1719721086483,0.07573607,3376.7,3376.6,2.3739]
[1719721086715,0.863,3377.0,3376.6,2.3739]
[1719721086893,0.07572925,3376.7,3376.6,2.3739]
[1719721087210,0.863,3377.0,3376.6,2.3739]
[1719721087411,0.0757222,3376.7,3376.6,2.3739]
[1719721087581,0.863,3377.0,3376.6,2.3739]
[1719721087782,0.07571868,3376.7,3376.6,2.3739]
[1719721087982,0.863,3377.0,3376.6,2.3739]
[1719721088184,0.07570019,3376.7,3376.6,2.3739]
[1719721088384,0.45290313,3376.9,3376.6,2.3739]
[1719721088583,0.07569667,3376.7,3376.6,2.3739]
[1719721088792,1.03183818,3377.0,3376.6,2.3739]
[1719721088793,0.45290374,3376.9,3376.6,2.3739]
[1719721088997,0.07569314,3376.7,3376.6,2.3739]
[1719721089190,0.863,3377.0,3376.6,2.3739]
[1719721089691,0.07574785,3376.9,3376.6,2.3739]
[1719721089912,0.52865159,3376.9,3376.6,2.3739]
[1719721090127,0.07574785,3376.9,3376.6,2.3739]
[1719721091204,0.863,3376.8,3376.3,2.3739]
[1719721091413,0.863,3376.7,3376.3,2.3739]
[1719721091667,0.93873088,3376.7,3376.3,2.3739]
[1719721092505,0.863,3376.5,3376.3,2.3739]
[1719721092703,0.07556057,3376.6,3376.3,2.3739]
[1719721092941,0.863,3376.6,3376.3,2.3739]
[1719721093117,0.07557981,3376.5,3376.3,2.3739]
[1719721094004,0.52857724,3376.5,3376.3,2.3739]
[1719721094604,0.52871785,3376.5,3376.3,2.3739]
[1719721097741,0.07557981,3376.5,3376.3,2.3739]
[1719721098198,0.52871948,3376.5,3376.3,2.3739]
[1719721099327,0.07557981,3376.5,3376.3,2.3739]
[1719721101468,0.52870604,3376.5,3376.3,2.3739]
[1719721101667,0.07557981,3376.5,3376.3,2.3739]
[1719721114069,0.07557981,3376.5,3376.0,3.0]
[1719721114070,0.863,3376.4,3376.0,3.0]
[1719721114271,0.863,3376.4,3375.8,3.542]
[1719721114272,3.98159047,3376.4,3375.8,3.542]
[1719721114471,0.45311693,3376.3,3375.8,3.542]
[1719721114675,0.07545076,3376.2,3375.8,3.542]
[1719721114985,0.45311693,3376.3,3375.8,3.542]
[1719721115279,0.07545256,3376.2,3375.8,3.0]
[1719721115480,0.45311693,3376.3,3375.7,2.3481]
[1719721115686,0.07544281,3376.1,3375.7,2.3481]
[1719721115890,0.45311693,3376.3,3375.7,2.3481]
[1719721116183,0.07542648,3376.0,3375.7,2.3481]
[1719721116399,0.863,3376.2,3375.7,2.3481]
[1719721116547,0.07541673,3375.9,3375.7,2.3481]
[1719721116751,0.863,3376.2,3375.7,2.3481]
[1719721116981,0.07540552,3375.8,3375.7,2.3481]
[1719721117184,0.863,3376.2,3375.7,2.3481]
[1719721117382,0.07541211,3375.8,3375.5,2.3481]
[1719721117580,0.39063533,3376.1,3375.5,2.3481]
[1719721117786,0.07537033,3375.7,3375.5,2.3481]
[1719721117990,0.45335332,3376.1,3375.5,2.3481]
[1719721118187,0.07536718,3375.6,3375.5,2.3481]
[1719721118489,0.07536059,3375.6,3375.5,2.3481]
[1719721118689,0.45335332,3376.1,3375.5,2.3481]
[1719721118923,0.45335332,3376.1,3375.6,0.542]
[1719721119059,0.45335332,3376.1,3375.7,2.4855]
[1719721119508,0.45335332,3376.1,3375.7,5.4855]
[1719721120134,0.45329007,3376.1,3375.7,5.4855]
[1719721123316,20.793,3376.3,3375.7,5.4855]
[1719721123609,0.45327546,3376.2,3375.7,5.4855]
[1719721126302,0.07537638,3376.1,3375.7,5.4855]
[1719721126815,0.45328639,3376.2,3375.7,3.0]
[1719721127015,0.863,3375.9,3375.6,0.542]
[1719721127583,0.07534714,3375.8,3375.6,0.542]
[1719721129694,0.863,3376.1,3375.8,0.542]
[1719721141339,0.07537413,3376.0,3375.8,0.542]
[1719721144643,0.52845956,3376.0,3375.8,0.542]
[1719721144805,0.07537413,3376.0,3375.8,0.542]
[1719721149134,0.22337413,3376.0,3375.8,0.542]
[1719721149510,0.67643638,3376.0,3375.8,0.542]
[1719721150543,0.67644305,3376.0,3375.8,0.542]
[1719721150912,0.67644305,3376.0,3375.8,0.512]
[1719721151448,0.22337413,3376.0,3375.8,0.512]
[1719721156789,0.22337413,3376.0,3375.9,2.3909]
[1719721156947,0.22337413,3376.0,3375.9,5.3909]
[1719721159048,0.22337413,3376.0,3375.9,3.0]
[1719721159355,0.22337413,3376.0,3375.8,0.512]
[1719721169369,2.443,3375.9,3375.8,0.512]
[1719721169590,2.91665282,3375.9,3375.5,0.512]
[1719721169767,0.863,3375.7,3375.3,3.512]
[1719721170017,0.863,3375.7,3375.4,3.0]
[1719721170168,0.863,3375.7,3375.3,0.512]
[1719721170169,0.07535918,3375.6,3375.3,0.512]
[1719721171324,0.07535918,3375.6,3375.5,0.512]
[1719721172068,0.07535918,3375.6,3375.3,0.512]
[1719721172271,0.07535918,3375.6,3375.1,3.512]
[1719721172272,3.306,3375.5,3375.1,3.512]
[1719721172571,0.863,3375.3,3375.2,3.0]
[1719721172787,0.863,3375.3,3375.0,0.512]
[1719721172995,0.93823819,3375.3,3375.0,0.512]
[1719721174974,0.93823819,3375.3,3374.8,3.0]
[1719721175175,0.93823819,3375.3,3375.0,0.512]
[1719721175998,0.93823819,3375.3,3375.1,0.512]
[1719721176194,0.93823819,3375.3,3375.0,0.512]
[1719721176715,0.93823819,3375.3,3375.1,0.512]
[1719721177209,1.32171675,3375.3,3375.1,0.512]
[1719721177828,0.453582,3375.2,3375.1,0.512]
[1719721177994,0.07519684,3375.2,3375.1,0.512]
[1719721178843,0.07518787,3375.2,3375.1,0.512]
[1719721179201,0.148,3375.3,3375.1,0.512]
[1719721179414,0.07518787,3375.2,3375.1,0.512]
[1719721179617,0.148,3375.3,3375.1,0.512]
[1719721179922,0.07519234,3375.2,3375.1,0.512]
[1719721180238,0.148,3375.3,3375.1,0.512]
[1719721180442,0.07519234,3375.2,3375.1,0.512]
[1719721181096,0.148,3375.3,3375.1,0.512]
[1719721181295,0.07519234,3375.2,3375.1,0.512]
[1719721181490,0.148,3375.3,3375.1,0.512]
[1719721181798,0.07519087,3375.2,3375.1,0.512]
[1719721181987,0.148,3375.3,3375.1,0.512]
[1719721182192,0.07519629,3375.2,3375.1,0.512]
[1719721182458,0.148,3375.3,3375.1,0.512]
[1719721182739,0.07519629,3375.2,3375.1,0.512]
[1719721182903,0.148,3375.3,3375.1,0.512]
[1719721183249,0.07519776,3375.2,3375.1,0.512]
[1719721183600,1.011,3375.3,3375.1,0.512]
[1719721183952,0.07519776,3375.2,3375.1,0.512]
[1719721184124,1.011,3375.3,3375.1,0.512]
[1719721184435,0.07519776,3375.2,3375.1,0.512]
[1719721184595,1.011,3375.3,3375.1,0.512]
[1719721184789,0.07519776,3375.2,3375.1,0.512]
[1719721184995,1.011,3375.3,3375.1,0.512]
[1719721185194,0.07519776,3375.2,3375.1,0.512]
[1719721185396,1.011,3375.3,3375.1,0.512]
[1719721185592,0.07519776,3375.2,3375.1,0.512]
[1719721185931,0.0752002,3375.2,3375.1,0.512]
[1719721186129,0.148,3375.3,3375.1,0.512]
[1719721186429,0.0752024,3375.2,3375.1,0.512]
[1719721186632,0.148,3375.3,3375.1,1.09246]
[1719721186853,0.0752024,3375.2,3375.1,1.09246]
[1719721187438,0.07516648,3375.2,3375.1,1.09246]
[1719721187646,0.148,3375.3,3375.1,1.09246]
[1719721187842,0.07516648,3375.2,3375.1,1.09246]
[1719721188150,0.148,3375.3,3375.1,1.09246]
[1719721188324,0.07516648,3375.2,3375.1,2.8046]
[1719721188528,0.07516648,3375.2,3375.1,6.6676]
[1719721188731,0.148,3375.3,3375.1,7.2176]
[1719721188925,0.148,3375.3,3375.2,5.8426]
[1719721201301,0.148,3375.3,3375.2,3.55]
[1719721201642,0.22318233,3375.3,3375.2,3.55]
[1719721202009,0.22318233,3375.3,3375.2,0.55]
[1719721203446,0.22318233,3375.3,3375.1,0.512]
[1719721210841,0.07518233,3375.3,3375.1,0.512]
[1719721211173,2.4775,3375.6,3375.1,0.512]
[1719721211376,0.0751506,3375.2,3375.1,0.512]
[1719721211543,2.4775,3375.6,3375.4,0.512]
[1719721212560,2.4475,3375.6,3375.4,0.512]
[1719721212963,0.45339202,3375.5,3375.4,0.512]
[1719721213362,0.4534261,3375.5,3375.4,0.512]
[1719721215648,2.4475,3375.6,3375.4,0.512]
[1719721216545,0.07263188,3375.5,3375.4,0.512]
[1719721216982,0.52607834,3375.5,3375.4,0.512]
[1719721217148,0.07263188,3375.5,3375.4,0.512]
[1719721217351,0.52602789,3375.5,3375.4,0.512]
[1719721217574,0.07263188,3375.5,3375.4,0.512]
[1719721223187,0.52598795,3375.5,3375.4,0.512]
[1719721226083,0.07263188,3375.5,3375.4,0.512]
[1719721226283,0.52606933,3375.5,3375.4,0.512]
[1719721227581,0.90972626,3375.5,3375.2,0.512]
[1719721227764,0.863,3375.3,3375.2,0.512]
[1719721227964,1.31643745,3375.3,3375.2,0.512]
[1719721228291,1.38906433,3375.3,3375.2,0.512]
[1719721228870,1.38906433,3375.3,3375.0,0.512]
[1719721229081,3.1757,3375.1,3375.0,0.512]
[1719721229395,3.62940933,3375.1,3375.0,0.512]
[1719721229569,3.70199104,3375.1,3375.0,0.512]
[1719721229779,3.70193632,3375.1,3375.0,0.512]
[1719721231670,3.74172056,3375.1,3375.0,0.512]
[1719721232500,3.74184338,3375.1,3375.0,0.512]
[1719721232699,3.74183431,3375.1,3375.0,0.512]
[1719721235813,3.74183573,3375.1,3375.0,0.512]
[1719721238981,3.74183542,3375.1,3375.0,0.512]
[1719721242039,3.28806595,3375.1,3375.0,0.512]
[1719721242325,3.74185597,3375.1,3375.0,0.512]
[1719721242479,3.28806595,3375.1,3375.0,0.512]
[1719721242685,3.74185792,3375.1,3375.0,0.512]
[1719721245042,3.74185861,3375.1,3375.0,0.512]
[1719721248352,1.42915861,3375.1,3375.0,0.512]
[1719721248516,1.42914785,3375.1,3375.0,0.512]
[1719721249122,0.97536595,3375.1,3375.0,0.512]
[1719721257331,1.42918943,3375.1,3375.0,0.512]
[1719721258309,1.42916303,3375.1,3375.0,0.512]
[1719721260915,0.97536595,3375.1,3375.0,0.512]
[1719721261111,1.42920267,3375.1,3375.0,0.512]
[1719721263849,1.42919591,3375.1,3375.0,0.512]
[1719721264221,1.42919218,3375.1,3375.0,0.512]
[1719721264934,0.56619218,3375.1,3375.0,0.512]
[1719721266940,0.5661781,3375.1,3375.0,0.512]
[1719721270140,0.56617791,3375.1,3375.0,0.512]
[1719721273473,0.56618866,3375.1,3375.0,0.512]
[1719721276482,2.92738482,3375.1,3374.6,3.0]
[1719721276706,0.863,3374.7,3374.3,0.512]
[1719721276924,2.92738482,3375.1,3374.3,0.512]
[1719721276925,0.863,3374.5,3374.3,0.512]
[1719721277224,0.11218736,3374.4,3374.3,0.512]
[1719721277915,2.52528736,3374.4,3373.9,0.512]
[1719721278224,0.863,3374.0,3373.9,0.512]
[1719721278620,0.97501689,3374.0,3373.9,0.512]
[1719721279331,1.42924896,3374.0,3373.9,0.512]
[1719721279539,0.11201689,3374.0,3373.9,0.512]
[1719721279738,0.863,3374.2,3373.9,0.512]
[1719721279959,0.1120258,3374.1,3373.9,0.512]
[1719721283908,0.1120258,3374.1,3373.6,3.512]
[1719721285611,2.7020258,3374.1,3373.6,3.512]
[1719721287419,3.1692,3373.9,3373.4,0.512]
[1719721287820,0.56656421,3373.8,3373.4,0.512]
[1719721288405,0.11187651,3373.8,3373.4,0.512]
[1719721290107,0.11187651,3373.8,3373.2,0.512]
[1719721291104,0.11187651,3373.8,3373.4,0.512]
[1719721291301,0.863,3373.7,3373.2,0.512]
[1719721291503,0.11183818,3373.6,3373.2,0.512]
[1719721295705,0.11183818,3373.6,3373.1,3.0]
[1719721295908,2.3062,3373.5,3372.9,0.512]
[1719721296137,0.11178449,3373.4,3372.9,2.795]
[1719721296444,0.11178449,3373.4,3373.0,3.0]
[1719721297803,0.863,3373.3,3372.9,0.512]
[1719721298237,0.11158669,3373.2,3372.9,0.512]
[1719721298616,0.863,3373.3,3372.9,0.512]
[1719721298802,0.11155024,3373.1,3372.9,0.512]
[1719721299009,0.863,3373.3,3372.9,0.512]
[1719721299246,0.11154166,3373.0,3372.9,0.512]
[1719721299432,0.863,3373.3,3372.9,0.512]
[1719721299633,0.11154166,3373.0,3372.9,0.512]
[1719721299808,0.863,3373.3,3372.9,0.512]
[1719721300012,0.11154166,3373.0,3372.9,0.512]
[1719721300250,2.3062,3373.5,3372.9,0.512]
[1719721300446,0.1114847,3373.0,3372.9,0.512]
[1719721300747,0.1114877,3373.0,3372.9,1.1778]
[1719721300945,2.3062,3373.5,3372.9,1.1778]
[1719721301110,0.11152203,3373.4,3372.9,0.512]
[1719721305614,0.11152203,3373.4,3373.1,0.512]
[1719721305914,3.1998,3373.8,3373.1,3.512]
[1719721306117,0.1115922,3373.7,3373.1,3.512]
[1719721312561,1.17573142,3373.7,3373.1,3.512]
[1719721312726,0.863,3373.6,3373.1,0.512]
[1719721313070,0.97463306,3373.6,3373.1,0.512]
[1719721315256,0.863,3373.4,3372.9,0.512]
[1719721315630,0.11159459,3373.3,3372.9,0.512]
[1719721316925,2.3368,3373.5,3372.9,0.512]
[1719721317125,0.1115882,3373.4,3372.9,0.512]
[1719721317327,0.9745882,3373.4,3372.9,0.512]
[1719721317735,1.45329741,3373.4,3372.9,0.512]
[1719721320362,2.78457119,3373.3,3372.9,0.512]
[1719721320559,2.44115692,3373.3,3372.9,0.512]
[1719721321240,0.45501922,3373.2,3372.9,0.512]
[1719721321787,0.11155506,3373.1,3372.9,0.512]
[1719721322554,0.863,3373.0,3372.9,0.512]
[1719721322871,0.97450151,3373.0,3372.9,0.512]
[1719721323080,0.11150151,3373.0,3372.9,0.512]
[1719721323453,0.45507269,3373.2,3372.9,0.512]
[1719721323778,0.81983996,3373.2,3372.9,0.512]
[1719721323979,0.11146922,3373.1,3372.9,0.512]
[1719721326267,0.45496613,3373.4,3372.9,0.512]
[1719721326458,0.11149502,3373.0,3372.9,0.512]
[1719721326655,0.45496613,3373.4,3372.9,0.512]
[1719721326866,0.11148548,3373.0,3372.9,0.512]
[1719721327065,0.45496613,3373.4,3372.9,0.512]
[1719721327267,0.11149502,3373.0,3372.9,0.512]
[1719721327567,0.11149952,3373.0,3372.9,0.512]
[1719721327773,0.45496613,3373.4,3372.9,0.512]
[1719721328077,0.11150762,3373.0,3372.9,0.512]
[1719721328257,0.45496613,3373.2,3372.9,0.512]
[1719721328459,0.11150762,3373.0,3372.9,0.512]
[1719721328667,0.45496613,3373.2,3372.9,0.512]
[1719721328855,0.11149231,3373.0,3372.9,0.512]
[1719721329051,0.45496613,3373.2,3372.9,0.512]
[1719721329253,0.11149741,3373.0,3372.9,0.512]
[1719721329454,0.45503814,3373.2,3372.9,0.512]
[1719721329688,0.11149741,3373.0,3372.9,0.512]
[1719721329850,1.06024299,3373.2,3372.9,0.512]
[1719721330045,0.11149741,3373.0,3372.9,0.512]
[1719721330249,0.45503445,3373.0,3372.9,0.482]
[1719721330453,0.56653186,3373.0,3372.9,0.482]
[1719721330759,0.87928908,3373.0,3372.9,0.482]
[1719721331462,0.56653186,3373.0,3372.9,0.482]
[1719721332288,0.56655351,3373.0,3372.9,0.482]
[1719721332979,0.56655351,3373.0,3372.2,0.863]
[1719721332980,0.56655351,3373.0,3372.2,0.482]
[1719721333187,0.863,3372.5,3372.2,0.482]
[1719721333398,2.59,3372.8,3372.2,0.482]
[1719721333399,0.863,3372.3,3372.2,0.482]
[1719721333756,3.42109439,3372.3,3372.2,0.482]
[1719721333967,3.87615049,3372.3,3372.0,0.482]
[1719721334167,0.4550561,3372.2,3372.0,0.482]
[1719721334371,0.56633403,3372.2,3372.0,0.482]
[1719721334698,0.863,3372.1,3372.0,0.482]
[1719721335011,1.42919972,3372.1,3371.8,0.482]
[1719721335169,0.97414362,3372.1,3371.8,0.482]
[1719721335353,0.863,3371.9,3371.8,0.482]
[1719721335552,0.863,3371.9,3371.4,0.482]
[1719721335802,0.863,3371.6,3371.4,0.482]
[1719721336256,0.11098916,3371.5,3371.4,0.482]
[1719721337697,2.59,3371.7,3371.4,0.482]
[1719721337894,0.11095978,3371.5,3371.4,0.482]
[1719721338107,1.2083,3371.6,3371.4,0.482]
[1719721338265,0.11095978,3371.5,3371.4,0.482]
[1719721340500,0.11095978,3371.5,3371.2,0.482]
[1719721340899,0.863,3371.6,3371.2,0.482]
[1719721341205,1.36668,3371.6,3371.2,0.482]
[1719721341400,0.11080134,3371.5,3371.2,0.482]
[1719721345379,0.11080134,3371.5,3371.0,0.482]
[1719721345604,5.0368,3371.7,3371.0,0.482]
[1719721345818,0.11076275,3371.4,3371.0,0.482]
[1719721346022,2.59,3371.7,3371.0,0.482]
[1719721346327,0.11075416,3371.3,3371.2,1.345]
[1719721346633,0.11070137,3371.3,3371.2,1.345]
[1719721346847,2.59,3371.7,3371.2,1.345]
[1719721347006,0.11073126,3371.3,3371.2,1.345]
[1719721347198,2.59,3371.7,3371.2,1.345]
[1719721347836,0.11076754,3371.6,3371.4,0.482]
[1719721348040,0.11076754,3371.6,3371.5,1.23541]
[1719721350310,0.11076754,3371.6,3371.5,0.37241]
[1719721351251,0.11076754,3371.6,3371.4,0.482]
[1719721359545,0.11076754,3371.6,3371.4,1.345]
[1719721377558,0.11076754,3371.6,3371.4,0.482]
[1719721380462,0.11076754,3371.6,3371.4,1.345]
[1719721384296,0.11076754,3371.6,3371.4,0.482]
[1719721384492,0.11076754,3371.6,3371.4,3.482]
[1719721384902,0.11076754,3371.6,3371.5,3.0]
[1719721385105,0.11076754,3371.6,3371.4,0.482]
[1719721385953,0.56592975,3371.6,3371.4,0.482]
[1719721388218,0.11076754,3371.6,3371.4,0.482]
[1719721388754,0.11076754,3371.6,3371.4,1.345]
[1719721389914,0.11076754,3371.6,3371.4,4.345]
[1719721390222,0.56585273,3371.6,3371.4,4.345]
[1719721390848,0.56585273,3371.6,3371.4,5.08757859]
[1719721390849,0.11076754,3371.6,3371.4,5.08757859]
[1719721392226,0.11093337,3371.6,3371.4,5.08757859]
[1719721393521,0.11093337,3371.6,3371.4,4.16526]
[1719721393841,0.11093337,3371.6,3371.4,4.345]
[1719721393842,0.56595387,3371.6,3371.4,4.345]
[1719721394046,0.56595387,3371.6,3371.5,3.0]
[1719721394212,0.56595387,3371.6,3371.4,1.345]
[1719721394411,0.11093337,3371.6,3371.4,1.345]
[1719721394630,0.56596777,3371.6,3371.4,1.345]
[1719721397652,0.11093337,3371.6,3371.4,1.345]
[1719721397960,0.56597103,3371.6,3371.4,1.345]
[1719721399372,0.11093337,3371.6,3371.4,4.1173]
[1719721399553,0.11093337,3371.6,3371.5,3.0]
[1719721410988,0.11093337,3371.6,3371.4,1.7795]
[1719721411183,0.5659507,3371.6,3371.5,0.863]
[1719721411392,0.5659507,3371.6,3371.4,0.482]
[1719721411785,2.3734,3371.5,3371.4,0.482]
[1719721412004,2.82841733,3371.5,3371.4,0.482]
[1719721412213,2.93833361,3371.5,3371.4,0.482]
[1719721414011,2.48331628,3371.5,3371.4,0.482]
[1719721414184,2.93846209,3371.5,3371.4,0.482]
[1719721416689,2.48331628,3371.5,3371.4,0.482]
[1719721416899,2.93849615,3371.5,3371.4,0.482]
[1719721417588,2.93852605,3371.5,3371.4,0.482]
[1719721419978,2.93855417,3371.5,3371.4,0.482]
[1719721423388,2.93864631,3371.5,3371.4,0.482]
[1719721423591,2.48331628,3371.5,3371.4,0.482]
[1719721423780,2.93862195,3371.5,3371.4,0.482]
[1719721426201,2.48331628,3371.5,3371.4,0.482]
[1719721426420,2.93851517,3371.5,3371.4,0.482]
[1719721426622,2.9385151,3371.5,3371.4,0.482]
[1719721429228,0.5651151,3371.5,3371.4,0.482]
[1719721429398,0.10991628,3371.5,3371.4,0.482]
[1719721433248,4.9132,3371.7,3371.4,0.482]
[1719721433546,0.45521028,3371.6,3371.4,0.482]
[1719721433719,0.56510422,3371.6,3371.4,0.482]
[1719721435316,0.10989394,3371.6,3371.4,0.482]
[1719721436816,0.10989394,3371.6,3371.4,1.15213]
[1719721437218,0.10989394,3371.6,3371.4,3.50843]
[1719721437519,0.10989394,3371.6,3371.5,3.0]
[1719721440294,0.10989394,3371.6,3371.4,1.15213]
[1719721440477,0.56506108,3371.6,3371.4,0.482]
[1719721441364,0.56112536,3371.6,3371.4,0.482]
[1719721441664,0.10595822,3371.6,3371.4,0.482]
[1719721442171,0.56106894,3371.6,3371.4,0.482]
[1719721442679,0.10595822,3371.6,3371.5,2.4905]
[1719721442888,0.10595822,3371.6,3371.5,5.4905]
[1719721444546,0.10595822,3371.6,3371.5,6.3535]
[1719721445645,7.33,3372.0,3371.5,6.9035]
[1719721445841,7.33,3372.0,3371.9,0.863]
[1719721446146,7.33,3372.0,3371.9,4.413]
[1719721451078,7.33,3372.6,3371.9,4.413]
[1719721451275,7.33,3372.6,3372.0,1.2284]
[1719721452404,7.33,3372.6,3372.5,0.482]
[1719721454516,7.33,3372.6,3372.5,2.853]
[1719721454876,7.33,3372.6,3372.5,5.853]
[1719721456183,2.59,3373.1,3373.0,0.482]
[1719721471420,2.68625504,3373.1,3373.0,0.482]
[1719721487233,3.14072315,3373.1,3373.0,0.482]
[1719721489665,3.14065528,3373.1,3373.0,0.482]
[1719721492847,2.68625504,3373.1,3373.0,0.482]
[1719721493058,3.14065704,3373.1,3373.0,0.482]
[1719721496126,3.14065806,3373.1,3373.0,0.482]
[1719721497290,2.68625504,3373.1,3373.0,0.482]
[1719721508013,2.68625504,3373.1,3373.0,4.71134]
[1719721510239,3.14066443,3373.1,3373.0,4.71134]
[1719721512930,3.1406594,3373.1,3373.0,4.71134]
[1719721513389,3.1406594,3373.1,3373.0,3.84834]
[1719721516159,2.68625504,3373.1,3373.0,3.84834]
[1719721516455,3.14066055,3373.1,3373.0,3.84834]
[1719721519575,3.14063744,3373.1,3373.0,3.84834]
[1719721522055,2.68625504,3373.1,3373.0,3.84834]
[1719721529255,3.14065048,3373.1,3373.0,3.482]
[1719721529581,2.68625504,3373.1,3373.0,3.482]
[1719721529787,3.1406899,3373.1,3373.0,3.482]
[1719721530838,3.1406899,3373.1,3373.0,0.482]
[1719721531184,2.3941,3373.0,3372.8,0.482]
[1719721531387,0.54756414,3372.9,3372.8,0.482]
[1719721532178,0.5475755,3372.9,3372.8,0.482]
[1719721532347,0.54757569,3372.9,3372.8,0.482]
[1719721535465,0.54759503,3372.9,3372.8,0.482]
[1719721538601,0.54759301,3372.9,3372.8,0.482]
[1719721541655,0.5476004,3372.9,3372.8,0.482]
[1719721544958,0.09312928,3372.9,3372.8,0.482]
[1719721545188,0.54763986,3372.9,3372.8,0.482]
[1719721548191,0.09312928,3372.9,3372.8,0.482]
[1719721551488,2.59,3373.1,3372.8,0.482]
[1719721551489,0.45443973,3373.0,3372.8,0.482]
[1719721551674,0.08996647,3372.9,3372.8,0.482]
[1719721563605,0.08996647,3372.9,3372.8,4.32451]
[1719721563805,2.59,3373.1,3372.8,7.32451]
[1719721564013,0.08994267,3372.9,3372.8,7.32451]
[1719721564317,0.08993965,3372.9,3372.8,7.32451]
[1719721564615,2.59,3373.1,3373.0,0.482]
[1719721564817,3.04437081,3373.1,3373.0,0.482]
[1719721565023,3.13434411,3373.1,3373.0,1.514451]
[1719721565198,3.13428933,3373.1,3373.0,1.514451]
[1719721566815,3.13429712,3373.1,3373.0,1.514451]
[1719721567220,2.6799733,3373.1,3373.0,1.514451]
[1719721567822,3.1342392,3373.1,3373.0,1.514451]
[1719721569988,3.13429531,3373.1,3373.0,1.514451]
[1719721570394,3.13425026,3373.1,3373.0,1.514451]
[1719721572645,2.6799733,3373.1,3373.0,1.514451]
[1719721574232,3.13418027,3373.1,3373.0,1.514451]
[1719721574619,2.6799733,3373.1,3373.0,1.514451]
[1719721575149,2.6799733,3373.1,3373.0,2.377451]
[1719721575294,2.6799733,3373.1,3373.0,4.870851]
[1719721575493,2.6799733,3373.1,3373.0,6.8384]
[1719721575890,2.6799733,3373.1,3373.0,7.3884]
[1719721579341,0.0899733,3373.1,3373.0,7.3884]
[1719721579847,7.33,3373.7,3373.6,0.482]
[1719721580046,7.42015666,3373.7,3373.6,0.482]
[1719721581822,7.87421188,3373.7,3373.6,0.482]
[1719721582027,7.42015666,3373.7,3373.6,0.482]
[1719721584069,7.42015666,3373.7,3373.6,1.15662]
[1719721597424,7.42015666,3373.7,3373.6,7.16582]
[1719721603133,0.09015666,3373.7,3373.6,7.16582]
[1719721603555,9.92,3374.3,3373.6,7.16582]
[1719721603755,9.92,3374.3,3374.1,0.863]
[1719721604682,9.92,3374.3,3374.0,0.482]
[1719721604683,2.4189,3374.2,3374.0,0.482]
[1719721606254,0.08440899,3374.1,3374.0,0.482]
[1719721609262,2.4189,3374.0,3373.6,0.482]
[1719721609574,0.08430748,3373.9,3373.6,0.482]
[1719721611885,0.08430748,3373.9,3373.8,0.482]
[1719721613936,2.4189,3374.2,3373.8,0.482]
[1719721614148,0.08426075,3373.9,3373.8,0.482]
[1719721614349,2.4189,3374.2,3373.8,0.482]
[1719721614550,0.08426075,3373.9,3373.8,0.482]
[1719721614747,2.4189,3374.2,3373.8,0.482]
[1719721614950,0.08428185,3373.9,3373.8,0.482]
[1719721615276,2.4189,3374.2,3373.8,0.482]
[1719721615776,0.08429901,3374.1,3373.8,0.482]
[1719721619462,0.08429901,3374.1,3373.5,0.863]
[1719721619463,0.08429901,3374.1,3374.0,0.482]
[1719721621185,2.59,3374.3,3374.0,0.482]
[1719721621369,0.08434572,3374.1,3374.0,0.482]
[1719721621567,2.59,3374.3,3374.0,0.482]